[Event "26th OIBM 2023"]
[Site "Gmund am Tegernsee"]
[Date "2023.10.28"]
[Round "1.28"]
[White "Zawadzka, Jolanta"]
[Black "Bianco, Valerio"]
[Result "1-0"]
[ECO "C13"]
[WhiteElo "2342"]
[BlackElo "2055"]
[Annotator "ChessBase"]
[PlyCount "43"]
[EventDate "2023.10.04"]
[EventType "swiss"]
[EventCountry "GER"]
[SourceTitle "playchess.com"]
[Source "ChessBase"]
[SourceQuality "1"]
[TimeControl "40/5400+30:1800+30"]

1. e4 {[%emt 0:00:06]} e6 {[%emt 0:00:08]} 2. d4 {[%emt 0:00:08]} d5 {[%emt 0:00:05]} 3. Nc3 {[%emt 0:00:08]} Nf6 {[%emt 0:00:06]} 4. Bg5 {[%emt 0:00:58]} dxe4 {[%emt 0:00:07]} 5. Nxe4 {[%emt 0:00:09]} Nbd7 {[%emt 0:00:06]} 6. Nf3 {[%emt 0:03:15]} Be7 {[%emt 0:00:30]} 7. Nxf6+ {[%emt 0:00:19]} Bxf6 {[%emt 0:00:26]} 8. h4 {[%emt 0:03:39]} c5 {[%emt 0:02:32]} 9. Qd2 {[%emt 0:05:11]} O-O {[%emt 0:08:13]} 10. O-O-O {[%emt 0:02:52]} cxd4 {[%emt 0:10:49]} 11. Nxd4 {[%emt 0:00:19]} Qb6 {[%emt 0:05:44]} 12. Nb3 {[%emt 0:09:04]} a5 {[%emt 0:03:38]} 13. a4 {[%emt 0:10:01]} e5 {[%emt 0:17:00]} 14. Be3 {[%emt 0:06:26]} Qc7 {[%emt 0:01:02]} 15. Bb5 {[%emt 0:00:42]} Rd8 {[%emt 0:00:47]} 16. Qe2 {[%emt 0:25:36]} b6 {[%emt 0:00:24]} 17. f3 {[%emt 0:02:23]} Bb7 {[%emt 0:00:41]} 18. Qf2 {[%emt 0:01:44]} Bc6 {[%emt 0:01:21]} 19. Qe2 {[%emt 0:05:04]} Bxb5 {[%emt 0:04:37]} 20. Qxb5 {[%emt 0:00:08]} Rac8 {[%emt 0:00:39]} 21. Rd2 {[%emt 0:01:58]} Nc5 {[%emt 0:10:27]} 22. Rxd8+ {[%emt 0:21:20]} 1-0

[Event "26th OIBM 2023"]
[Site "Gmund am Tegernsee"]
[Date "2023.10.28"]
[Round "1.29"]
[White "Jerie, Sven"]
[Black "Reimann, Sebastian"]
[Result "0-1"]
[ECO "B90"]
[WhiteElo "2055"]
[BlackElo "2342"]
[Annotator "ChessBase"]
[PlyCount "68"]
[EventDate "2023.10.04"]
[EventType "swiss"]
[EventCountry "GER"]
[SourceTitle "playchess.com"]
[Source "ChessBase"]
[SourceQuality "1"]
[TimeControl "40/5400+30:1800+30"]

1. e4 {[%emt 0:00:06]} c5 {[%emt 0:01:17]} 2. Nf3 {[%emt 0:00:13]} d6 {[%emt 0:00:13]} 3. d4 {[%emt 0:00:13]} cxd4 {[%emt 0:00:08]} 4. Nxd4 {[%emt 0:00:03]} Nf6 {[%emt 0:00:11]} 5. Nc3 {[%emt 0:00:07]} a6 {[%emt 0:00:37]} 6. Be3 {[%emt 0:00:14]} e5 {[%emt 0:00:28]} 7. Nb3 {[%emt 0:00:18]} Be6 {[%emt 0:00:26]} 8. f3 {[%emt 0:00:50]} Be7 {[%emt 0:04:33]} 9. Qd2 {[%emt 0:00:44]} h5 {[%emt 0:00:16]} 10. Nd5 {[%emt 0:02:39]} Nxd5 {[%emt 0:00:10]} 11. exd5 {[%emt 0:00:08]} Bf5 {[%emt 0:00:05]} 12. Be2 {[%emt 0:01:23]} a5 {[%emt 0:07:11]} 13. a4 {[%emt 0:03:45]} O-O {[%emt 0:04:38]} 14. O-O {[%emt 0:00:34]} Nd7 {[%emt 0:00:09]} 15. f4 {[%emt 0:12:24]} exf4 {[%emt 0:00:11]} 16. Bxf4 {[%emt 0:01:12]} Rc8 {[%emt 0:00:13]} 17. c4 {[%emt 0:12:40]} Bg4 {[%emt 0:28:43]} 18. Bxg4 {[%emt 0:05:51]} hxg4 {[%emt 0:01:34]} 19. Nxa5 {[%emt 0:01:26]} Qb6+ {[%emt 0:10:25]} 20. Kh1 {[%emt 0:04:23]} Bf6 {[%emt 0:23:24]} 21. Rab1 {[%emt 0:04:52]} Rfe8 {[%emt 0:00:58]} 22. b4 {[%emt 0:05:21]} Re4 {[%emt 0:08:40]} 23. Rfc1 {[%emt 0:05:30]} Qa6 {[%emt 0:02:32]} 24. Bg3 {[%emt 0:18:41]} Rce8 {[%emt 0:00:53]} 25. b5 {[%emt 0:09:49]} Qb6 {[%emt 0:00:43]} 26. Nb3 {[%emt 0:00:56]} Ne5 {[%emt 0:02:21]} 27. Bf2 {[%emt 0:06:29]} Qd8 {[%emt 0:00:28]} 28. Qa5 {[%emt 0:01:35]} Qd7 {[%emt 0:00:46]} 29. c5 {[%emt 0:00:57]} Nd3 {[%emt 0:01:04]} 30. Rf1 {[%emt 0:00:24]} Re2 {[%emt 0:00:52]} 31. c6 {[%emt 0:00:17]} Qf5 {[%emt 0:00:06]} 32. Bg1 {[%emt 0:00:11]} Qe4 {[%emt 0:00:23]} 33. Bf2 {[%emt 0:01:15]} Nxf2+ {[%emt 0:00:07]} 34. Rxf2 {[%emt 0:00:07]} Qxb1+ {[%emt 0:00:05]} 0-1

[Event "26th OIBM 2023"]
[Site "Gmund am Tegernsee"]
[Date "2023.10.28"]
[Round "1.30"]
[White "Lammers, Markus"]
[Black "Kolthoff, Siegmund"]
[Result "1-0"]
[ECO "D12"]
[WhiteElo "2336"]
[BlackElo "2055"]
[Annotator "ChessBase"]
[PlyCount "103"]
[EventDate "2023.10.04"]
[EventType "swiss"]
[EventCountry "GER"]
[SourceTitle "playchess.com"]
[Source "ChessBase"]
[SourceQuality "1"]
[TimeControl "40/5400+30:1800+30"]

1. Nf3 {[%emt 0:00:16]} d5 {[%emt 0:00:43]} 2. c4 {[%emt 0:00:08]} c6 {[%emt 0:01:51]} 3. d4 {[%emt 0:00:05]} Nf6 {[%emt 0:00:14]} 4. e3 {[%emt 0:00:53]} Bf5 {[%emt 0:01:57]} 5. Nc3 {[%emt 0:00:06]} e6 {[%emt 0:00:14]} 6. Nh4 {[%emt 0:00:04]} Be4 {[%emt 0:02:45]} 7. f3 {[%emt 0:00:22]} Bg6 {[%emt 0:00:57]} 8. g3 {[%emt 0:00:51]} Nbd7 {[%emt 0:04:23]} 9. Be2 {[%emt 0:04:57]} Be7 {[%emt 0:02:17]} 10. Ng2 {[%emt 0:02:58]} O-O {[%emt 0:03:53]} 11. Nf4 {[%emt 0:09:15]} dxc4 {[%emt 0:09:40]} 12. Bxc4 {[%emt 0:04:43]} e5 {[%emt 0:03:44]} 13. Nxg6 {[%emt 0:00:05]} hxg6 {[%emt 0:00:10]} 14. O-O {[%emt 0:14:52]} exd4 {[%emt 0:04:29]} 15. Qxd4 {[%emt 0:11:17]} Bc5 {[%emt 0:02:42]} 16. Qf4 {[%emt 0:00:27]} Qe7 {[%emt 0:02:44]} 17. Kh1 {[%emt 0:09:12]} Ne5 {[%emt 0:06:38]} 18. Be2 {[%emt 0:00:35]} Rad8 {[%emt 0:00:56]} 19. e4 {[%emt 0:02:09]} Nd3 {[%emt 0:08:28]} 20. Qg5 {[%emt 0:01:11]} Rfe8 {[%emt 0:06:04]} 21. Be3 {[%emt 0:04:40]} Bxe3 {[%emt 0:02:37]} 22. Qxe3 {[%emt 0:00:37]} Qc5 {[%emt 0:01:37]} 23. Qxc5 {[%emt 0:01:36]} Nxc5 {[%emt 0:00:04]} 24. Rfd1 {[%emt 0:01:02]} Rxd1+ {[%emt 0:06:31]} 25. Rxd1 {[%emt 0:00:09]} a5 {[%emt 0:00:12]} 26. Kg2 {[%emt 0:01:48]} g5 {[%emt 0:00:36]} 27. h3 {[%emt 0:00:56]} Kf8 {[%emt 0:05:56]} 28. Kf2 {[%emt 0:01:30]} Re7 {[%emt 0:04:03]} 29. Rd8+ {[%emt 0:00:34]} Re8 {[%emt 0:00:19]} 30. Rd1 {[%emt 0:07:54]} Re7 {[%emt 0:00:26]} 31. Ke3 {[%emt 0:00:43]} Rd7 {[%emt 0:01:03]} 32. Rc1 {[%emt 0:01:47]} Ne6 {[%emt 0:06:36]} 33. Na4 {[%emt 0:00:24]} Nh5 {[%emt 0:01:31]} 34. Bc4 {[%emt 0:04:35]} Nxg3 {[%emt 0:04:41]} 35. Bxe6 {[%emt 0:01:13]} fxe6 {[%emt 0:00:04]} 36. Rg1 {[%emt 0:00:21]} Nh5 {[%emt 0:01:34]} 37. Rxg5 {[%emt 0:00:07]} Nf6 {[%emt 0:00:42]} 38. Rxa5 {[%emt 0:00:05]} Re7 {[%emt 0:04:54]} 39. Ra8+ {[%emt 0:03:00]} Kf7 {[%emt 0:00:30]} 40. Nc5 {[%emt 0:03:48]} b6 {[%emt 0:01:10]} 41. Nd3 {[%emt 0:30:20]} Nd7 {[%emt 0:03:33]} 42. Rc8 {[%emt 0:00:00]} c5 {[%emt 0:00:18]} 43. Rd8 {[%emt 0:00:00]} Kf6 {[%emt 0:00:32]} 44. Kf4 {[%emt 0:00:00]} e5+ {[%emt 0:02:11]} 45. Kg4 {[%emt 0:00:00]} Ke6 {[%emt 0:00:11]} 46. h4 {[%emt 0:00:00]} Rf7 {[%emt 0:01:10]} 47. Re8+ {[%emt 0:00:00]} Kd6 {[%emt 0:00:19]} 48. Kg3 {[%emt 0:00:00]} Rf6 {[%emt 0:06:11]} 49. Nf2 {[%emt 0:00:00]} Rf7 {[%emt 0:02:25]} 50. Ng4 {[%emt 0:00:00]} Re7 {[%emt 0:01:42]} 51. Rg8 {[%emt 0:00:00]} b5 {[%emt 0:00:25]} 52. Ne3 {[%emt 0:14:55]} 1-0

[Event "26th OIBM 2023"]
[Site "Gmund am Tegernsee"]
[Date "2023.10.28"]
[Round "1.31"]
[White "Niese, Holger"]
[Black "Dolzhykova, Kateryna"]
[Result "0-1"]
[ECO "B75"]
[WhiteElo "2053"]
[BlackElo "2336"]
[Annotator "ChessBase"]
[PlyCount "40"]
[EventDate "2023.10.04"]
[EventType "swiss"]
[EventCountry "GER"]
[SourceTitle "playchess.com"]
[Source "ChessBase"]
[SourceQuality "1"]
[TimeControl "40/5400+30:1800+30"]

1. e4 {[%emt 0:00:01]} c5 {[%emt 0:00:18]} 2. Nf3 {[%emt 0:00:07]} d6 {[%emt 0:00:06]} 3. d4 {[%emt 0:00:03]} cxd4 {[%emt 0:00:05]} 4. Nxd4 {[%emt 0:00:05]} Nf6 {[%emt 0:00:05]} 5. Nc3 {[%emt 0:00:04]} g6 {[%emt 0:00:10]} 6. Be3 {[%emt 0:00:10]} Bg7 {[%emt 0:00:08]} 7. f3 {[%emt 0:00:09]} a6 {[%emt 0:00:27]} 8. Qd2 {[%emt 0:00:21]} h5 {[%emt 0:00:11]} 9. O-O-O {[%emt 0:00:38]} b5 {[%emt 0:01:44]} 10. a4 {[%emt 0:09:39]} bxa4 {[%emt 0:06:32]} 11. Nxa4 {[%emt 0:00:41]} Bd7 {[%emt 0:00:16]} 12. Nc3 {[%emt 0:00:32]} Nc6 {[%emt 0:01:35]} 13. Bc4 {[%emt 0:00:41]} Rb8 {[%emt 0:03:33]} 14. Nxc6 {[%emt 0:05:09]} Bxc6 {[%emt 0:00:05]} 15. Bb3 {[%emt 0:03:43]} Qc7 {[%emt 0:06:26]} 16. h3 {[%emt 0:00:54]} h4 {[%emt 0:00:59]} 17. Bg5 {[%emt 0:07:51]} a5 {[%emt 0:04:46]} 18. Rhe1 {[%emt 0:19:40]} Rh5 {[%emt 0:02:54]} 19. Nd5 {[%emt 0:03:36]} Bxd5 {[%emt 0:00:38]} 20. exd5 {[%emt 0:00:27]} Rxb3 {[%emt 0:00:28]} 0-1

[Event "26th OIBM 2023"]
[Site "Gmund am Tegernsee"]
[Date "2023.10.28"]
[Round "1.32"]
[White "Zude, Arno"]
[Black "Kobl, Rudolf"]
[Result "1/2-1/2"]
[ECO "B48"]
[WhiteElo "2333"]
[BlackElo "2052"]
[Annotator "ChessBase"]
[PlyCount "61"]
[EventDate "2023.10.04"]
[EventType "swiss"]
[EventCountry "GER"]
[SourceTitle "playchess.com"]
[Source "ChessBase"]
[SourceQuality "1"]
[TimeControl "40/5400+30:1800+30"]

1. e4 {[%emt 0:00:03]} c5 {[%emt 0:00:21]} 2. Nf3 {[%emt 0:00:11]} e6 {[%emt 0:00:25]} 3. d4 {[%emt 0:00:09]} cxd4 {[%emt 0:00:14]} 4. Nxd4 {[%emt 0:00:07]} Nc6 {[%emt 0:00:29]} 5. Nc3 {[%emt 0:00:15]} Qc7 {[%emt 0:00:24]} 6. Be3 {[%emt 0:00:21]} a6 {[%emt 0:00:24]} 7. Qd2 {[%emt 0:00:33]} Nf6 {[%emt 0:00:39]} 8. O-O-O {[%emt 0:05:15]} Be7 {[%emt 0:00:35]} 9. f3 {[%emt 0:01:48]} b5 {[%emt 0:00:42]} 10. Nxc6 {[%emt 0:02:40]} dxc6 {[%emt 0:00:28]} 11. Qf2 {[%emt 0:03:14]} e5 {[%emt 0:04:24]} 12. Bb6 {[%emt 0:08:11]} Qb7 {[%emt 0:01:48]} 13. Bc5 {[%emt 0:00:16]} O-O {[%emt 0:17:04]} 14. Be2 {[%emt 0:02:51]} Be6 {[%emt 0:01:42]} 15. Kb1 {[%emt 0:04:21]} Rfd8 {[%emt 0:05:20]} 16. Bxe7 {[%emt 0:15:30]} Qxe7 {[%emt 0:00:58]} 17. Qb6 {[%emt 0:00:34]} Rdc8 {[%emt 0:10:52]} 18. Rd2 {[%emt 0:05:37]} Qa7 {[%emt 0:05:41]} 19. Qxa7 {[%emt 0:02:14]} Rxa7 {[%emt 0:00:08]} 20. Rhd1 {[%emt 0:00:12]} Rd7 {[%emt 0:01:00]} 21. Rxd7 {[%emt 0:00:19]} Nxd7 {[%emt 0:00:13]} 22. Rd2 {[%emt 0:05:34]} Kf8 {[%emt 0:03:18]} 23. Nd1 {[%emt 0:02:42]} Ke7 {[%emt 0:04:10]} 24. Ne3 {[%emt 0:00:28]} g6 {[%emt 0:05:53]} 25. g3 {[%emt 0:04:11]} f6 {[%emt 0:03:31]} 26. b3 {[%emt 0:02:58]} Nc5 {[%emt 0:03:52]} 27. Kc1 {[%emt 0:04:31]} a5 {[%emt 0:05:49]} 28. Bf1 {[%emt 0:02:30]} Ra8 {[%emt 0:02:41]} 29. Be2 {[%emt 0:07:46]} Rc8 {[%emt 0:00:57]} 30. Bf1 {[%emt 0:01:31]} Ra8 {[%emt 0:00:27]} 31. Be2 {[%emt 0:00:55]} 1/2-1/2

[Event "26th OIBM 2023"]
[Site "Gmund am Tegernsee"]
[Date "2023.10.28"]
[Round "1.33"]
[White "Holgert, Michael"]
[Black "Nguyen, Alex Dac-Vuong"]
[Result "0-1"]
[ECO "D02"]
[WhiteElo "2051"]
[BlackElo "2333"]
[Annotator "ChessBase"]
[PlyCount "74"]
[EventDate "2023.10.04"]
[EventType "swiss"]
[EventCountry "GER"]
[SourceTitle "playchess.com"]
[Source "ChessBase"]
[SourceQuality "1"]
[TimeControl "40/5400+30:1800+30"]

1. d4 {[%emt 0:00:03]} Nf6 {[%emt 0:00:07]} 2. Nf3 {[%emt 0:00:06]} d5 {[%emt 0:01:07]} 3. Bf4 {[%emt 0:00:13]} c5 {[%emt 0:00:15]} 4. e3 {[%emt 0:00:46]} Nc6 {[%emt 0:00:15]} 5. Nbd2 {[%emt 0:00:59]} Qb6 {[%emt 0:05:04]} 6. dxc5 {[%emt 0:04:43]} Qxb2 {[%emt 0:11:17]} 7. c4 {[%emt 0:17:54]} Bf5 {[%emt 0:09:25]} 8. Qc1 {[%emt 0:07:44]} Qxc1+ {[%emt 0:12:19]} 9. Rxc1 {[%emt 0:00:08]} h6 {[%emt 0:00:51]} 10. Nd4 {[%emt 0:08:12]} Bd7 {[%emt 0:01:47]} 11. Nb5 {[%emt 0:13:47]} O-O-O {[%emt 0:07:07]} 12. Bc7 {[%emt 0:04:28]} Re8 {[%emt 0:06:09]} 13. Bg3 {[%emt 0:00:35]} e5 {[%emt 0:02:08]} 14. cxd5 {[%emt 0:02:37]} Nxd5 {[%emt 0:00:07]} 15. Nc4 {[%emt 0:02:25]} Kb8 {[%emt 0:00:16]} 16. Nbd6 {[%emt 0:01:59]} Bxd6 {[%emt 0:00:13]} 17. Nxd6 {[%emt 0:00:10]} Re7 {[%emt 0:01:11]} 18. Bc4 {[%emt 0:07:18]} Be6 {[%emt 0:00:10]} 19. O-O {[%emt 0:00:47]} Nc7 {[%emt 0:03:21]} 20. Rb1 {[%emt 0:10:12]} Bxc4 {[%emt 0:00:32]} 21. Nxc4 {[%emt 0:00:02]} h5 {[%emt 0:04:08]} 22. f3 {[%emt 0:01:41]} h4 {[%emt 0:01:13]} 23. Bf2 {[%emt 0:00:30]} h3 {[%emt 0:00:08]} 24. g4 {[%emt 0:01:12]} Ne6 {[%emt 0:04:11]} 25. Nd6 {[%emt 0:01:50]} Rd8 {[%emt 0:03:05]} 26. Rfc1 {[%emt 0:01:48]} Ng5 {[%emt 0:10:01]} 27. f4 {[%emt 0:02:02]} Nf3+ {[%emt 0:05:48]} 28. Kh1 {[%emt 0:00:03]} g6 {[%emt 0:00:22]} 29. Bg3 {[%emt 0:02:41]} Ka8 {[%emt 0:00:13]} 30. Rf1 {[%emt 0:02:07]} exf4 {[%emt 0:05:11]} 31. Rxf3 {[%emt 0:01:11]} fxg3 {[%emt 0:00:07]} 32. Rxg3 {[%emt 0:00:15]} b6 {[%emt 0:02:15]} 33. Rxh3 {[%emt 0:02:12]} bxc5 {[%emt 0:00:10]} 34. Nb5 {[%emt 0:00:51]} Rb7 {[%emt 0:00:46]} 35. e4 {[%emt 0:00:51]} Rdb8 {[%emt 0:03:01]} 36. Rhb3 {[%emt 0:00:25]} c4 {[%emt 0:00:09]} 37. R3b2 {[%emt 0:03:39]} c3 {[%emt 0:00:09]} 0-1

[Event "26th OIBM 2023"]
[Site "Gmund am Tegernsee"]
[Date "2023.10.28"]
[Round "1.34"]
[White "Chassard, Cedric"]
[Black "Mueller-Dehn, Christian"]
[Result "1-0"]
[ECO "C41"]
[WhiteElo "2326"]
[BlackElo "2051"]
[Annotator "ChessBase"]
[PlyCount "55"]
[EventDate "2023.10.04"]
[EventType "swiss"]
[EventCountry "GER"]
[SourceTitle "playchess.com"]
[Source "ChessBase"]
[SourceQuality "1"]
[TimeControl "40/5400+30:1800+30"]

1. e4 {[%emt 0:00:05]} d6 {[%emt 0:00:10]} 2. d4 {[%emt 0:00:09]} Nf6 {[%emt 0:00:08]} 3. Nc3 {[%emt 0:00:09]} e5 {[%emt 0:00:13]} 4. Nf3 {[%emt 0:00:05]} Nbd7 {[%emt 0:00:15]} 5. g4 {[%emt 0:00:05]} Nxg4 {[%emt 0:07:28]} 6. Rg1 {[%emt 0:02:28]} Ngf6 {[%emt 0:00:15]} 7. Be3 {[%emt 0:00:17]} c6 {[%emt 0:00:46]} 8. Qd2 {[%emt 0:00:42]} b5 {[%emt 0:02:24]} 9. O-O-O {[%emt 0:01:43]} Qa5 {[%emt 0:02:59]} 10. dxe5 {[%emt 0:04:01]} dxe5 {[%emt 0:03:33]} 11. Kb1 {[%emt 0:13:24]} b4 {[%emt 0:01:30]} 12. Na4 {[%emt 0:05:10]} Nxe4 {[%emt 0:21:12]} 13. Qd3 {[%emt 0:18:07]} Nd6 {[%emt 0:03:37]} 14. Qb3 {[%emt 0:04:20]} Ba6 {[%emt 0:16:30]} 15. Bxa6 {[%emt 0:12:05]} Qxa6 {[%emt 0:00:11]} 16. Nc5 {[%emt 0:00:20]} Qb5 {[%emt 0:09:49]} 17. Nxd7 {[%emt 0:01:00]} Kxd7 {[%emt 0:00:02]} 18. Qxf7+ {[%emt 0:00:35]} Be7 {[%emt 0:07:19]} 19. Rxd6+ {[%emt 0:01:43]} Kxd6 {[%emt 0:00:59]} 20. Rd1+ {[%emt 0:00:07]} Qd5 {[%emt 0:01:56]} 21. Rxd5+ {[%emt 0:00:19]} cxd5 {[%emt 0:00:01]} 22. Bc5+ {[%emt 0:00:45]} Kxc5 {[%emt 0:00:56]} 23. Qxe7+ {[%emt 0:00:02]} Kb5 {[%emt 0:00:31]} 24. Qb7+ {[%emt 0:00:37]} Kc5 {[%emt 0:00:16]} 25. Qc7+ {[%emt 0:00:05]} Kb5 {[%emt 0:00:22]} 26. Nxe5 {[%emt 0:01:11]} Rhe8 {[%emt 0:00:46]} 27. Qc6+ {[%emt 0:00:06]} Ka5 {[%emt 0:00:03]} 28. Qxd5+ {[%emt 0:00:08]} 1-0

[Event "26th OIBM 2023"]
[Site "Gmund am Tegernsee"]
[Date "2023.10.28"]
[Round "1.35"]
[White "Hornung, Hans"]
[Black "Kulon, Klaudia"]
[Result "0-1"]
[ECO "E71"]
[WhiteElo "2050"]
[BlackElo "2319"]
[Annotator "ChessBase"]
[PlyCount "78"]
[EventDate "2023.10.04"]
[EventType "swiss"]
[EventCountry "GER"]
[SourceTitle "playchess.com"]
[Source "ChessBase"]
[SourceQuality "1"]
[TimeControl "40/5400+30:1800+30"]

1. c4 {[%emt 0:01:53]} Nf6 {[%emt 0:00:25]} 2. Nc3 {[%emt 0:00:06]} g6 {[%emt 0:00:09]} 3. e4 {[%emt 0:00:17]} d6 {[%emt 0:00:08]} 4. d4 {[%emt 0:00:08]} Bg7 {[%emt 0:00:06]} 5. h3 {[%emt 0:00:16]} O-O {[%emt 0:00:20]} 6. Bg5 {[%emt 0:00:19]} h6 {[%emt 0:05:35]} 7. Be3 {[%emt 0:03:38]} e5 {[%emt 0:00:14]} 8. d5 {[%emt 0:00:32]} Na6 {[%emt 0:00:55]} 9. Bd3 {[%emt 0:01:18]} Nc5 {[%emt 0:00:51]} 10. Bc2 {[%emt 0:00:16]} a5 {[%emt 0:00:39]} 11. Nge2 {[%emt 0:08:09]} Nh5 {[%emt 0:09:43]} 12. Qd2 {[%emt 0:07:46]} g5 {[%emt 0:06:00]} 13. Ng3 {[%emt 0:10:23]} Nf4 {[%emt 0:06:41]} 14. f3 {[%emt 0:04:22]} Ng6 {[%emt 0:10:04]} 15. O-O-O {[%emt 0:01:19]} Nh4 {[%emt 0:01:15]} 16. Kb1 {[%emt 0:03:14]} Bd7 {[%emt 0:01:19]} 17. Nf5 {[%emt 0:07:35]} Bxf5 {[%emt 0:04:29]} 18. exf5 {[%emt 0:00:07]} Qc8 {[%emt 0:11:17]} 19. Bxc5 {[%emt 0:12:44]} dxc5 {[%emt 0:00:56]} 20. Qd3 {[%emt 0:03:30]} e4 {[%emt 0:00:28]} 21. Nxe4 {[%emt 0:02:21]} Qxf5 {[%emt 0:02:02]} 22. g4 {[%emt 0:02:28]} Qg6 {[%emt 0:00:15]} 23. f4 {[%emt 0:07:10]} Rfe8 {[%emt 0:04:14]} 24. f5 {[%emt 0:02:20]} Qb6 {[%emt 0:00:20]} 25. f6 {[%emt 0:01:19]} Bxf6 {[%emt 0:00:34]} 26. Nxf6+ {[%emt 0:00:08]} Qxf6 {[%emt 0:00:03]} 27. Rhf1 {[%emt 0:02:16]} Qg7 {[%emt 0:00:06]} 28. Qg3 {[%emt 0:04:22]} Re5 {[%emt 0:03:57]} 29. d6 {[%emt 0:01:00]} cxd6 {[%emt 0:01:25]} 30. Rxd6 {[%emt 0:14:14]} Rae8 {[%emt 0:00:28]} 31. Rd7 {[%emt 0:00:00]} Re3 {[%emt 0:03:17]} 32. Qxe3 {[%emt 0:00:00]} Rxe3 {[%emt 0:00:04]} 33. Rd8+ {[%emt 0:00:00]} Qf8 {[%emt 0:00:03]} 34. Rxf8+ {[%emt 0:00:00]} Kxf8 {[%emt 0:00:02]} 35. Ba4 {[%emt 0:00:00]} Rxh3 {[%emt 0:00:48]} 36. Rf6 {[%emt 0:00:00]} Nf3 {[%emt 0:01:46]} 37. Rb6 {[%emt 0:00:00]} h5 {[%emt 0:00:41]} 38. Rxb7 {[%emt 0:01:00]} hxg4 {[%emt 0:00:25]} 39. Bc6 {[%emt 0:00:46]} Rh1+ {[%emt 0:00:10]} 0-1

[Event "26th OIBM 2023"]
[Site "Gmund am Tegernsee"]
[Date "2023.10.28"]
[Round "1.36"]
[White "Lavrencic, Matic"]
[Black "Roemhild, Marcus"]
[Result "1-0"]
[ECO "B38"]
[WhiteElo "2319"]
[BlackElo "2050"]
[Annotator "ChessBase"]
[PlyCount "79"]
[EventDate "2023.10.04"]
[EventType "swiss"]
[EventCountry "GER"]
[SourceTitle "playchess.com"]
[Source "ChessBase"]
[SourceQuality "1"]
[TimeControl "40/5400+30:1800+30"]

1. e4 {[%emt 0:00:28]} c5 {[%emt 0:00:19]} 2. Nf3 {[%emt 0:00:17]} g6 {[%emt 0:00:12]} 3. d4 {[%emt 0:01:28]} cxd4 {[%emt 0:00:15]} 4. Nxd4 {[%emt 0:00:24]} Nc6 {[%emt 0:01:13]} 5. c4 {[%emt 0:00:08]} Bg7 {[%emt 0:00:35]} 6. Be3 {[%emt 0:00:09]} Nf6 {[%emt 0:00:37]} 7. Nc3 {[%emt 0:01:08]} Nxd4 {[%emt 0:01:37]} 8. Bxd4 {[%emt 0:00:41]} O-O {[%emt 0:03:49]} 9. Be2 {[%emt 0:00:11]} d6 {[%emt 0:00:23]} 10. O-O {[%emt 0:00:15]} Bd7 {[%emt 0:04:30]} 11. Re1 {[%emt 0:03:25]} Bc6 {[%emt 0:00:33]} 12. Bf1 {[%emt 0:01:20]} a5 {[%emt 0:01:14]} 13. Qd2 {[%emt 0:01:20]} Nd7 {[%emt 0:02:53]} 14. Bxg7 {[%emt 0:00:42]} Kxg7 {[%emt 0:00:20]} 15. b3 {[%emt 0:01:09]} Qb6 {[%emt 0:18:18]} 16. Rab1 {[%emt 0:00:47]} Qc5 {[%emt 0:09:56]} 17. Qb2 {[%emt 0:03:16]} Kg8 {[%emt 0:06:12]} 18. a3 {[%emt 0:00:48]} Qe5 {[%emt 0:03:22]} 19. b4 {[%emt 0:02:20]} axb4 {[%emt 0:02:57]} 20. axb4 {[%emt 0:00:03]} b6 {[%emt 0:00:53]} 21. g3 {[%emt 0:15:53]} Rfc8 {[%emt 0:01:46]} 22. Bh3 {[%emt 0:09:32]} e6 {[%emt 0:02:26]} 23. Qb3 {[%emt 0:06:03]} Qh5 {[%emt 0:02:06]} 24. Bg2 {[%emt 0:02:06]} Ne5 {[%emt 0:04:39]} 25. Rbd1 {[%emt 0:03:56]} Rd8 {[%emt 0:14:44]} 26. Rd4 {[%emt 0:09:18]} Nf3+ {[%emt 0:01:46]} 27. Bxf3 {[%emt 0:00:27]} Qxf3 {[%emt 0:00:20]} 28. b5 {[%emt 0:01:42]} Bb7 {[%emt 0:01:25]} 29. Qb2 {[%emt 0:03:15]} e5 {[%emt 0:04:56]} 30. Rdd1 {[%emt 0:01:30]} Rac8 {[%emt 0:02:07]} 31. Qb4 {[%emt 0:03:56]} h5 {[%emt 0:00:59]} 32. Re3 {[%emt 0:00:55]} Qf6 {[%emt 0:01:09]} 33. Na4 {[%emt 0:01:41]} d5 {[%emt 0:01:23]} 34. exd5 {[%emt 0:02:13]} h4 {[%emt 0:01:06]} 35. Nc3 {[%emt 0:01:35]} hxg3 {[%emt 0:00:52]} 36. hxg3 {[%emt 0:00:28]} Qg5 {[%emt 0:02:35]} 37. Ne4 {[%emt 0:01:20]} Qf5 {[%emt 0:03:33]} 38. Qe7 {[%emt 0:01:43]} Kg7 {[%emt 0:00:32]} 39. Nd6 {[%emt 0:00:36]} Rxd6 {[%emt 0:00:54]} 40. Qxd6 {[%emt 0:00:06]} 1-0